[Event "*** Titled Tuesday Blitz"]
[Site "Chess.com"]
[Date "2019.06.04"]
[Round "10"]
[White "hellokostya"]
[Black "lachesisQ"]
[Result "0-1"]
[WhiteElo "2539"]
[BlackElo "3043"]
[TimeControl "180+2"]
[EndTime "15:17:48 PDT"]
[Termination "lachesisQ won by resignation"]

1. d4 {[%clk 0:03:01.9]} 1... d5 {[%clk 0:02:58]} 2. c4 {[%clk 0:03:02.6]} 2...
e5 {[%clk 0:02:59.2]} 3. dxe5 {[%clk 0:03:03.3]} 3... d4 {[%clk 0:03:00.4]} 4.
Nf3 {[%clk 0:03:04.1]} 4... Nc6 {[%clk 0:03:01.3]} 5. a3 {[%clk 0:03:05.2]} 5...
Bg4 {[%clk 0:03:01.9]} 6. Nbd2 {[%clk 0:03:02.3]} 6... Qe7 {[%clk 0:03:02.5]} 7.
Qa4 {[%clk 0:02:51.2]} 7... O-O-O {[%clk 0:02:50.5]} 8. b4 {[%clk 0:02:46.6]}
8... Kb8 {[%clk 0:02:50.6]} 9. h3 {[%clk 0:02:36.2]} 9... Bxf3 {[%clk
0:02:45.8]} 10. Nxf3 {[%clk 0:02:38.1]} 10... Nxe5 {[%clk 0:02:46.5]} 11. Nxe5
{[%clk 0:02:34.7]} 11... Qxe5 {[%clk 0:02:48.4]} 12. Bb2 {[%clk 0:02:32.5]}
12... Nf6 {[%clk 0:02:49.2]} 13. g3 {[%clk 0:02:23.2]} 13... Qe4 {[%clk
0:02:40.5]} 14. Rg1 {[%clk 0:02:11.6]} 14... d3 {[%clk 0:02:40.6]} 15. O-O-O
{[%clk 0:02:04.2]} 15... Qxc4+ {[%clk 0:02:37.8]} 16. Kb1 {[%clk 0:02:05.5]}
16... b5 {[%clk 0:02:21]} 17. Qa6 {[%clk 0:01:47.8]} 17... Rd6 {[%clk
0:02:09.4]} 18. exd3 {[%clk 0:01:42.5]} 18... Qb3 {[%clk 0:02:10.2]} 19. Qxb5+
{[%clk 0:00:40.4]} 19... Rb6 {[%clk 0:02:09.2]} 20. Qxb6+ {[%clk 0:00:39.8]}
20... axb6 {[%clk 0:02:06.4]} 21. Bg2 {[%clk 0:00:41.7]} 21... Nd5 {[%clk
0:01:59.6]} 22. Rc1 {[%clk 0:00:41.4]} 22... Bxb4 {[%clk 0:01:56.2]} 23. axb4
{[%clk 0:00:31.6]} 23... Qxd3+ {[%clk 0:01:56.9]} 24. Ka1 {[%clk 0:00:29.2]}
24... Qa6+ {[%clk 0:01:54.6]} 25. Kb1 {[%clk 0:00:30]} 25... Nxb4 {[%clk
0:01:56.2]} 26. Rc3 {[%clk 0:00:30.1]} 26... Qa2+ {[%clk 0:01:51.9]} 27. Kc1
{[%clk 0:00:31]} 27... Rd8 {[%clk 0:01:40.5]} 28. Re1 {[%clk 0:00:32]} 28... Qa5
{[%clk 0:01:29.3]} 29. Re7 {[%clk 0:00:27.4]} 29... Na2+ {[%clk 0:01:29.3]} 30.
Kc2 {[%clk 0:00:28.1]} 30... Nxc3 {[%clk 0:01:30.2]} 31. Bxc3 {[%clk 0:00:29.6]}
31... Qa2+ {[%clk 0:01:30.9]} 32. Bb2 {[%clk 0:00:28.8]} 32... Qc4+ {[%clk
0:01:31.1]} 0-1

[Event "*** Titled Tuesday Blitz"]
[Site "Chess.com"]
[Date "2019.06.04"]
[Round "10"]
[White "nrvisakh"]
[Black "Ambitiousresolutions"]
[Result "1-0"]
[WhiteElo "2745"]
[BlackElo "2609"]
[TimeControl "180+2"]
[EndTime "15:17:52 PDT"]
[Termination "nrvisakh won by resignation"]

1. e4 {[%clk 0:03:01.9]} 1... e5 {[%clk 0:02:58.1]} 2. Nf3 {[%clk 0:03:01.8]}
2... Nc6 {[%clk 0:02:58.7]} 3. c3 {[%clk 0:03:02.4]} 3... Nf6 {[%clk 0:02:51.7]}
4. d4 {[%clk 0:03:00.2]} 4... Nxe4 {[%clk 0:02:46.7]} 5. d5 {[%clk 0:03:00.3]}
5... Bc5 {[%clk 0:02:10.4]} 6. dxc6 {[%clk 0:02:51.6]} 6... Nxf2 {[%clk
0:02:11.2]} 7. Qd5 {[%clk 0:02:51.5]} 7... Nxh1 {[%clk 0:01:54.5]} 8. Qxc5
{[%clk 0:02:52]} 8... bxc6 {[%clk 0:01:40]} 9. Qxe5+ {[%clk 0:02:49]} 9... Qe7
{[%clk 0:01:41]} 10. Qxe7+ {[%clk 0:02:49.6]} 10... Kxe7 {[%clk 0:01:42.9]} 11.
g3 {[%clk 0:02:51.2]} 11... c5 {[%clk 0:01:39]} 12. Bg2 {[%clk 0:02:51.2]} 12...
Nxg3 {[%clk 0:01:39.9]} 13. hxg3 {[%clk 0:02:52.4]} 13... Bb7 {[%clk 0:01:41.8]}
14. Na3 {[%clk 0:02:53.5]} 14... d6 {[%clk 0:01:37.8]} 15. Kf2 {[%clk
0:02:54.2]} 15... a6 {[%clk 0:01:22.3]} 16. Bf4 {[%clk 0:02:51.6]} 16... Rae8
{[%clk 0:01:22]} 17. Nc4 {[%clk 0:02:51.6]} 17... Kd8 {[%clk 0:01:20.7]} 18. Ng5
{[%clk 0:02:50.2]} 18... Bxg2 {[%clk 0:01:20]} 19. Nxf7+ {[%clk 0:02:50]} 19...
Ke7 {[%clk 0:01:18.2]} 20. Nxh8 {[%clk 0:02:48.6]} 20... Bd5 {[%clk 0:01:19.2]}
21. Re1+ {[%clk 0:02:48.5]} 21... Be6 {[%clk 0:01:18.1]} 22. Ne3 {[%clk
0:02:43.2]} 22... Rxh8 {[%clk 0:01:17.8]} 23. c4 {[%clk 0:02:37.9]} 23... Kd7
{[%clk 0:01:15.4]} 24. b3 {[%clk 0:02:38.3]} 24... a5 {[%clk 0:01:07.1]} 25. Nd5
{[%clk 0:02:38.3]} 25... a4 {[%clk 0:01:05.4]} 26. Nxc7 {[%clk 0:02:38.6]} 26...
Bf7 {[%clk 0:00:48.4]} 27. Nb5 {[%clk 0:02:38.3]} 27... axb3 {[%clk 0:00:48.3]}
28. axb3 {[%clk 0:02:40.2]} 28... d5 {[%clk 0:00:49.6]} 29. Bd6 {[%clk
0:02:40.6]} 29... dxc4 {[%clk 0:00:48.9]} 30. Re7+ {[%clk 0:02:36.5]} 30... Kc6
{[%clk 0:00:50.1]} 31. Rxf7 {[%clk 0:02:37.1]} 31... Kxb5 {[%clk 0:00:52]} 32.
bxc4+ {[%clk 0:02:38.2]} 32... Kxc4 {[%clk 0:00:38]} 33. Rxg7 {[%clk 0:02:32.5]}
33... Kd5 {[%clk 0:00:36.8]} 34. Bf4 {[%clk 0:02:32.6]} 34... h5 {[%clk
0:00:36.7]} 35. Rg5+ {[%clk 0:02:32.3]} 35... Kc6 {[%clk 0:00:37.6]} 36. Be3
{[%clk 0:02:33.3]} 36... h4 {[%clk 0:00:29.7]} 37. g4 {[%clk 0:02:33.3]} 37...
h3 {[%clk 0:00:28]} 38. Rxc5+ {[%clk 0:02:33.9]} 38... Kd6 {[%clk 0:00:29.2]}
39. Rc1 {[%clk 0:02:30.5]} 39... h2 {[%clk 0:00:26.5]} 40. Rh1 {[%clk
0:02:30.8]} 1-0

[Event "*** Titled Tuesday Blitz"]
[Site "Chess.com"]
[Date "2019.06.04"]
[Round "10"]
[White "Blitzstream"]
[Black "Sebastian"]
[Result "0-1"]
[WhiteElo "2699"]
[BlackElo "2869"]
[TimeControl "180+2"]
[EndTime "15:18:09 PDT"]
[Termination "Sebastian won on time"]

1. d4 {[%clk 0:03:01.9]} 1... Nf6 {[%clk 0:03:00.6]} 2. Bg5 {[%clk 0:02:59.6]}
2... d5 {[%clk 0:03:00.6]} 3. e3 {[%clk 0:02:59.4]} 3... c6 {[%clk 0:02:59.4]}
4. c3 {[%clk 0:02:55.1]} 4... Bg4 {[%clk 0:02:53.1]} 5. Qb3 {[%clk 0:02:50.1]}
5... Qb6 {[%clk 0:02:53.5]} 6. Nd2 {[%clk 0:02:51]} 6... Nbd7 {[%clk 0:02:53.7]}
7. Bd3 {[%clk 0:02:50.6]} 7... e6 {[%clk 0:02:54]} 8. Ne2 {[%clk 0:02:37.8]}
8... Bh5 {[%clk 0:02:49.1]} 9. Nf4 {[%clk 0:02:36.7]} 9... Bg6 {[%clk
0:02:50.1]} 10. Nxg6 {[%clk 0:02:37.8]} 10... hxg6 {[%clk 0:02:52]} 11. h3
{[%clk 0:02:36.2]} 11... Bd6 {[%clk 0:02:37.3]} 12. e4 {[%clk 0:02:09.9]} 12...
dxe4 {[%clk 0:02:33.6]} 13. Nxe4 {[%clk 0:02:10.9]} 13... Nxe4 {[%clk
0:02:32.5]} 14. Bxe4 {[%clk 0:02:11.9]} 14... Qc7 {[%clk 0:02:22.1]} 15. O-O
{[%clk 0:01:51.6]} 15... Nf6 {[%clk 0:02:20.7]} 16. Bf3 {[%clk 0:01:43.1]} 16...
O-O-O {[%clk 0:02:14.7]} 17. c4 {[%clk 0:01:38.7]} 17... Bf4 {[%clk 0:02:12.9]}
18. Bxf6 {[%clk 0:01:34.5]} 18... gxf6 {[%clk 0:02:13.5]} 19. d5 {[%clk
0:01:35.3]} 19... exd5 {[%clk 0:02:09.2]} 20. cxd5 {[%clk 0:01:36]} 20... c5
{[%clk 0:02:10.8]} 21. Qc4 {[%clk 0:01:10.4]} 21... Rh4 {[%clk 0:02:00.2]} 22.
Kh1 {[%clk 0:00:36.7]} 22... Rdh8 {[%clk 0:01:59.9]} 23. b4 {[%clk 0:00:30]}
23... Be5 {[%clk 0:01:46]} 24. Qxc5 {[%clk 0:00:16.7]} 24... Bxa1 {[%clk
0:01:44.2]} 25. Rxa1 {[%clk 0:00:18.3]} 25... b6 {[%clk 0:01:26.3]} 26. Qe3
{[%clk 0:00:10.2]} 26... Qe5 {[%clk 0:01:25.9]} 27. Rc1+ {[%clk 0:00:10]} 27...
Kb8 {[%clk 0:01:26.8]} 28. Qd3 {[%clk 0:00:05.3]} 28... Qg5 {[%clk 0:01:21.8]}
0-1

[Event "*** Titled Tuesday Blitz"]
[Site "Chess.com"]
[Date "2019.06.04"]
[Round "10"]
[White "Bigfish1995"]
[Black "Antipov_Mikhail_Al"]
[Result "1-0"]
[WhiteElo "2971"]
[BlackElo "2886"]
[TimeControl "180+2"]
[EndTime "15:18:34 PDT"]
[Termination "Bigfish1995 won by resignation"]

1. e4 {[%clk 0:03:01.9]} 1... e6 {[%clk 0:03:00.5]} 2. d4 {[%clk 0:03:01.9]}
2... d5 {[%clk 0:03:02.1]} 3. exd5 {[%clk 0:03:03]} 3... exd5 {[%clk 0:03:04]}
4. Bd3 {[%clk 0:03:04.3]} 4... Nf6 {[%clk 0:03:04.8]} 5. c3 {[%clk 0:03:04.4]}
5... Be7 {[%clk 0:03:03.1]} 6. Qc2 {[%clk 0:03:03.4]} 6... Nbd7 {[%clk
0:03:02.6]} 7. Bf4 {[%clk 0:03:02]} 7... Nf8 {[%clk 0:03:03.4]} 8. Nd2 {[%clk
0:03:00.1]} 8... Ng6 {[%clk 0:03:04.5]} 9. Bg3 {[%clk 0:02:59.9]} 9... O-O
{[%clk 0:02:55.8]} 10. O-O-O {[%clk 0:02:59.8]} 10... c5 {[%clk 0:02:57.2]} 11.
dxc5 {[%clk 0:02:59.3]} 11... Bxc5 {[%clk 0:02:59.1]} 12. Ngf3 {[%clk 0:02:59]}
12... Qb6 {[%clk 0:02:55.8]} 13. Nb3 {[%clk 0:02:59.2]} 13... Be7 {[%clk
0:02:56.3]} 14. Nfd4 {[%clk 0:02:59.5]} 14... Bd7 {[%clk 0:02:36.6]} 15. Rhe1
{[%clk 0:02:57.8]} 15... Rfe8 {[%clk 0:02:35.2]} 16. Nf5 {[%clk 0:02:59]} 16...
Bf8 {[%clk 0:02:35]} 17. Nbd4 {[%clk 0:03:00.2]} 17... Qa5 {[%clk 0:02:29.3]}
18. Kb1 {[%clk 0:02:48.8]} 18... Ba4 {[%clk 0:02:30]} 19. Nb3 {[%clk 0:02:42.4]}
19... Qb6 {[%clk 0:02:31.1]} 20. f3 {[%clk 0:02:43.3]} 20... a6 {[%clk
0:02:25.6]} 21. h4 {[%clk 0:02:41.1]} 21... Rac8 {[%clk 0:02:13.5]} 22. Bf2
{[%clk 0:02:13.4]} 22... Qc7 {[%clk 0:02:13.6]} 23. g4 {[%clk 0:02:13.5]} 23...
Nd7 {[%clk 0:01:45.1]} 24. Bg3 {[%clk 0:02:08.9]} 24... Qb6 {[%clk 0:01:44]} 25.
Nfd4 {[%clk 0:02:00]} 25... h6 {[%clk 0:01:28.2]} 26. Bf5 {[%clk 0:01:49.5]}
26... Rcd8 {[%clk 0:01:24.5]} 27. Qh2 {[%clk 0:01:31.6]} 27... Ra8 {[%clk
0:00:53.2]} 28. Bc2 {[%clk 0:01:25]} 28... Qf6 {[%clk 0:00:47.4]} 29. g5 {[%clk
0:01:08.2]} 29... hxg5 {[%clk 0:00:47.8]} 30. hxg5 {[%clk 0:01:09.5]} 30... Qxg5
{[%clk 0:00:49.7]} 31. Rh1 {[%clk 0:01:10.5]} 31... Nf6 {[%clk 0:00:51.3]} 32.
Ka1 {[%clk 0:00:58.9]} 32... a5 {[%clk 0:00:44.2]} 33. Bxg6 {[%clk 0:00:58.4]}
33... fxg6 {[%clk 0:00:43.9]} 34. Bf4 {[%clk 0:01:00.1]} 34... Qh5 {[%clk
0:00:41.6]} 35. Qg2 {[%clk 0:01:00.9]} 35... Bxb3 {[%clk 0:00:42.8]} 36. axb3
{[%clk 0:00:59.9]} 36... a4 {[%clk 0:00:44.3]} 37. b4 {[%clk 0:00:55.9]} 1-0

[Event "*** Titled Tuesday Blitz"]
[Site "Chess.com"]
[Date "2019.06.04"]
[Round "10"]
[White "XiaoKangZhong"]
[Black "ethylalcohol"]
[Result "0-1"]
[WhiteElo "2257"]
[BlackElo "2040"]
[TimeControl "180+2"]
[EndTime "15:18:38 PDT"]
[Termination "ethylalcohol won by resignation"]

1. e4 {[%clk 0:03:01.9]} 1... e6 {[%clk 0:03:00.8]} 2. d4 {[%clk 0:03:02.6]}
2... d5 {[%clk 0:03:01.6]} 3. Nd2 {[%clk 0:03:04.1]} 3... c5 {[%clk 0:03:01.1]}
4. exd5 {[%clk 0:03:04.3]} 4... Qxd5 {[%clk 0:03:01.2]} 5. Ngf3 {[%clk
0:03:05.1]} 5... Nf6 {[%clk 0:03:02.2]} 6. Bc4 {[%clk 0:03:05.3]} 6... Qd6
{[%clk 0:03:03.3]} 7. O-O {[%clk 0:03:04.1]} 7... cxd4 {[%clk 0:03:04]} 8. Nb3
{[%clk 0:03:04.9]} 8... Nc6 {[%clk 0:03:05]} 9. Nbxd4 {[%clk 0:03:04.8]} 9...
Nxd4 {[%clk 0:03:06.2]} 10. Nxd4 {[%clk 0:03:06.7]} 10... Qc7 {[%clk 0:03:07.3]}
11. Bb5+ {[%clk 0:02:54.8]} 11... Bd7 {[%clk 0:03:05.1]} 12. Bxd7+ {[%clk
0:02:52.1]} 12... Qxd7 {[%clk 0:03:01.7]} 13. Bf4 {[%clk 0:02:41.2]} 13... Be7
{[%clk 0:02:57.2]} 14. c4 {[%clk 0:02:40.7]} 14... O-O {[%clk 0:02:50]} 15. Nb5
{[%clk 0:02:39]} 15... a6 {[%clk 0:02:41.6]} 16. Nc3 {[%clk 0:02:38.4]} 16...
Rac8 {[%clk 0:02:38.3]} 17. b3 {[%clk 0:02:38.3]} 17... Rfd8 {[%clk 0:02:28.5]}
18. Qf3 {[%clk 0:02:35.6]} 18... Qc6 {[%clk 0:02:22.8]} 19. Qe2 {[%clk
0:02:28.1]} 19... b5 {[%clk 0:02:18.7]} 20. Rac1 {[%clk 0:02:08.8]} 20... bxc4
{[%clk 0:02:17.8]} 21. bxc4 {[%clk 0:02:09.7]} 21... Qxc4 {[%clk 0:02:16]} 22.
Qf3 {[%clk 0:01:47.9]} 22... Ba3 {[%clk 0:02:11.4]} 23. Rcd1 {[%clk 0:01:38.2]}
23... Rxd1 {[%clk 0:02:01.9]} 24. Rxd1 {[%clk 0:01:40.1]} 24... Qxc3 {[%clk
0:01:48.2]} 25. Qxc3 {[%clk 0:01:07.2]} 25... Rxc3 {[%clk 0:01:47.7]} 26. g4
{[%clk 0:01:07.6]} 26... Nd5 {[%clk 0:01:46.1]} 27. Be5 {[%clk 0:01:08.6]} 27...
Rc4 {[%clk 0:01:44.2]} 28. h3 {[%clk 0:01:07.5]} 28... f6 {[%clk 0:01:45]} 29.
Bg3 {[%clk 0:01:07.1]} 29... Kf7 {[%clk 0:01:44.6]} 30. Kg2 {[%clk 0:01:07.6]}
30... Rc2 {[%clk 0:01:42]} 31. Rd4 {[%clk 0:01:06.3]} 31... Bb4 {[%clk
0:01:34.8]} 32. a4 {[%clk 0:01:06.3]} 32... a5 {[%clk 0:01:35]} 33. g5 {[%clk
0:01:04.1]} 33... Ra2 {[%clk 0:01:34.9]} 34. gxf6 {[%clk 0:01:05]} 34... gxf6
{[%clk 0:01:34.7]} 35. Rh4 {[%clk 0:01:06]} 35... Kg7 {[%clk 0:01:25.2]} 36.
Rg4+ {[%clk 0:01:07.1]} 36... Kh8 {[%clk 0:01:21.7]} 37. h4 {[%clk 0:00:59.1]}
37... Rxa4 {[%clk 0:01:20.2]} 38. Bd6 {[%clk 0:00:59.2]} 38... Ra2 {[%clk
0:01:14.7]} 39. Bxb4 {[%clk 0:00:58.4]} 39... axb4 {[%clk 0:01:14.3]} 40. h5
{[%clk 0:00:59.5]} 40... h6 {[%clk 0:01:10]} 41. Rg6 {[%clk 0:00:58.6]} 41...
Kh7 {[%clk 0:01:10.3]} 42. Rg4 {[%clk 0:00:59.4]} 42... b3 {[%clk 0:01:10.2]}
43. Rc4 {[%clk 0:00:59.9]} 43... b2 {[%clk 0:01:08.6]} 0-1

[Event "*** Titled Tuesday Blitz"]
[Site "Chess.com"]
[Date "2019.06.04"]
[Round "10"]
[White "GadimbayliA"]
[Black "TST2014"]
[Result "1-0"]
[WhiteElo "2831"]
[BlackElo "2549"]
[TimeControl "180+2"]
[EndTime "15:18:44 PDT"]
[Termination "GadimbayliA won by resignation"]

1. Nf3 {[%clk 0:03:01.9]} 1... Nf6 {[%clk 0:03:00.5]} 2. b3 {[%clk 0:02:58.6]}
2... g6 {[%clk 0:03:00.4]} 3. Bb2 {[%clk 0:02:59.5]} 3... Bg7 {[%clk 0:03:01.5]}
4. e3 {[%clk 0:03:01.1]} 4... O-O {[%clk 0:03:02.2]} 5. Be2 {[%clk 0:03:02.3]}
5... d6 {[%clk 0:03:00.2]} 6. O-O {[%clk 0:03:02.2]} 6... e5 {[%clk 0:03:00.7]}
7. d4 {[%clk 0:03:03.6]} 7... Nc6 {[%clk 0:02:56.3]} 8. dxe5 {[%clk 0:02:59.7]}
8... Ng4 {[%clk 0:02:56.6]} 9. c4 {[%clk 0:03:00.3]} 9... Ngxe5 {[%clk
0:02:56.9]} 10. Nc3 {[%clk 0:03:02.2]} 10... Bf5 {[%clk 0:02:54.8]} 11. Qd2
{[%clk 0:03:01.3]} 11... Qd7 {[%clk 0:02:43]} 12. Nd5 {[%clk 0:03:00]} 12...
Nxf3+ {[%clk 0:02:39.9]} 13. Bxf3 {[%clk 0:03:01.9]} 13... Ne5 {[%clk 0:02:41]}
14. Be2 {[%clk 0:03:01.7]} 14... a5 {[%clk 0:02:28.6]} 15. a3 {[%clk 0:02:57.2]}
15... a4 {[%clk 0:02:23.9]} 16. b4 {[%clk 0:02:57.9]} 16... Be6 {[%clk
0:02:15.4]} 17. Rac1 {[%clk 0:02:52.8]} 17... Qd8 {[%clk 0:02:09]} 18. Rfd1
{[%clk 0:02:41.7]} 18... b6 {[%clk 0:01:53.5]} 19. Ba1 {[%clk 0:02:09.1]} 19...
Kh8 {[%clk 0:01:48.1]} 20. c5 {[%clk 0:01:42.1]} 20... bxc5 {[%clk 0:01:45.8]}
21. bxc5 {[%clk 0:01:42.7]} 21... dxc5 {[%clk 0:01:17.7]} 22. Rxc5 {[%clk
0:01:04.6]} 22... c6 {[%clk 0:01:12.9]} 23. Nf4 {[%clk 0:01:04.4]} 23... Bb3
{[%clk 0:00:58.2]} 24. Qxd8 {[%clk 0:00:59.3]} 24... Raxd8 {[%clk 0:00:55.1]}
25. Rxd8 {[%clk 0:01:01.2]} 25... Rxd8 {[%clk 0:00:55]} 26. Bxe5 {[%clk
0:00:56.8]} 26... f6 {[%clk 0:00:46]} 27. Bc3 {[%clk 0:00:51.4]} 27... Bf8
{[%clk 0:00:45.3]} 28. Rxc6 {[%clk 0:00:51.9]} 28... Bxa3 {[%clk 0:00:45.6]} 29.
Bxf6+ {[%clk 0:00:48.9]} 29... Kg8 {[%clk 0:00:46.2]} 30. Bxd8 {[%clk
0:00:49.6]} 30... Bf8 {[%clk 0:00:42.7]} 31. Bc4+ {[%clk 0:00:48.2]} 31... Bxc4
{[%clk 0:00:42.9]} 32. Rxc4 {[%clk 0:00:50.1]} 32... a3 {[%clk 0:00:44.7]} 33.
Ra4 {[%clk 0:00:51.3]} 33... Kf7 {[%clk 0:00:45.5]} 34. Ba5 {[%clk 0:00:51.4]}
34... g5 {[%clk 0:00:44.1]} 35. Bb4 {[%clk 0:00:53.3]} 35... Bxb4 {[%clk
0:00:39.5]} 36. Rxb4 {[%clk 0:00:55.2]} 36... gxf4 {[%clk 0:00:41.1]} 37. Rxf4+
{[%clk 0:00:56.2]} 37... Ke6 {[%clk 0:00:42.8]} 38. Ra4 {[%clk 0:00:58.1]} 1-0

[Event "*** Titled Tuesday Blitz"]
[Site "Chess.com"]
[Date "2019.06.04"]
[Round "10"]
[White "ChainsOfFantasia"]
[Black "adriangschnitzer"]
[Result "0-1"]
[WhiteElo "2478"]
[BlackElo "2465"]
[TimeControl "180+2"]
[EndTime "15:18:46 PDT"]
[Termination "adriangschnitzer won by resignation"]

1. d4 {[%clk 0:03:01.9]} 1... Nf6 {[%clk 0:02:57.3]} 2. c4 {[%clk 0:03:01]} 2...
c5 {[%clk 0:02:58.4]} 3. d5 {[%clk 0:03:01.8]} 3... b5 {[%clk 0:02:59.1]} 4.
cxb5 {[%clk 0:03:03.7]} 4... a6 {[%clk 0:02:59.4]} 5. bxa6 {[%clk 0:03:05.6]}
5... g6 {[%clk 0:02:58.9]} 6. Nc3 {[%clk 0:03:07.1]} 6... Bg7 {[%clk 0:02:58.8]}
7. a7 {[%clk 0:03:08.5]} 7... Rxa7 {[%clk 0:02:56.9]} 8. e4 {[%clk 0:03:09.8]}
8... O-O {[%clk 0:02:57.2]} 9. Nf3 {[%clk 0:03:11]} 9... e6 {[%clk 0:02:54.5]}
10. dxe6 {[%clk 0:03:12.9]} 10... fxe6 {[%clk 0:02:52.1]} 11. Bd3 {[%clk
0:03:14.4]} 11... d5 {[%clk 0:02:52.8]} 12. Bg5 {[%clk 0:03:12]} 12... h6 {[%clk
0:02:51.2]} 13. Bxf6 {[%clk 0:03:12.3]} 13... Bxf6 {[%clk 0:02:47.9]} 14. exd5
{[%clk 0:03:06]} 14... exd5 {[%clk 0:02:47.9]} 15. Bxg6 {[%clk 0:02:57.1]} 15...
Re7+ {[%clk 0:02:43.4]} 16. Kf1 {[%clk 0:02:56.4]} 16... Ba6+ {[%clk 0:02:38.2]}
17. Bd3 {[%clk 0:02:50.1]} 17... c4 {[%clk 0:02:38.7]} 18. Nxd5 {[%clk
0:02:29.2]} 18... Rd7 {[%clk 0:02:19.4]} 19. Be4 {[%clk 0:02:27]} 19... c3+
{[%clk 0:02:16.1]} 20. Kg1 {[%clk 0:02:26.9]} 20... cxb2 {[%clk 0:02:17.1]} 21.
Rb1 {[%clk 0:02:24.4]} 21... Re8 {[%clk 0:02:13.3]} 22. Qb3 {[%clk 0:02:14.4]}
22... Kh8 {[%clk 0:02:03.1]} 23. Nxf6 {[%clk 0:01:42.1]} 23... Qxf6 {[%clk
0:02:05]} 24. g3 {[%clk 0:01:29]} 24... Rxe4 {[%clk 0:01:47.7]} 25. Qxb8+ {[%clk
0:01:29]} 25... Kh7 {[%clk 0:01:45.6]} 26. Qb3 {[%clk 0:00:56.5]} 26... Bd3
{[%clk 0:01:18.2]} 27. Qxb2 {[%clk 0:00:35.6]} 27... Qxf3 {[%clk 0:01:13.9]} 28.
Rc1 {[%clk 0:00:36.6]} 28... Re2 {[%clk 0:01:10.9]} 29. Qb6 {[%clk 0:00:31.1]}
29... Rde7 {[%clk 0:00:48.6]} 30. Rf1 {[%clk 0:00:20.8]} 30... Be4 {[%clk
0:00:40.9]} 0-1

[Event "*** Titled Tuesday Blitz"]
[Site "Chess.com"]
[Date "2019.06.04"]
[Round "10"]
[White "kleinebeer98"]
[Black "VladDobrov"]
[Result "0-1"]
[WhiteElo "2742"]
[BlackElo "2836"]
[TimeControl "180+2"]
[EndTime "15:18:48 PDT"]
[Termination "VladDobrov won by checkmate"]

1. e4 {[%clk 0:03:01.9]} 1... c5 {[%clk 0:03:00]} 2. Nf3 {[%clk 0:03:03]} 2...
Nc6 {[%clk 0:03:01.5]} 3. d4 {[%clk 0:03:01.1]} 3... cxd4 {[%clk 0:03:03.4]} 4.
Nxd4 {[%clk 0:03:03]} 4... Qb6 {[%clk 0:03:04.6]} 5. Nxc6 {[%clk 0:02:57.4]}
5... bxc6 {[%clk 0:03:05.2]} 6. Nc3 {[%clk 0:02:55.8]} 6... d6 {[%clk
0:03:04.9]} 7. Bd3 {[%clk 0:02:55.1]} 7... Nf6 {[%clk 0:03:04.2]} 8. O-O {[%clk
0:02:54.9]} 8... g6 {[%clk 0:03:05.3]} 9. b3 {[%clk 0:02:50.8]} 9... Bg7 {[%clk
0:03:06]} 10. Bb2 {[%clk 0:02:52.1]} 10... O-O {[%clk 0:03:06.8]} 11. Qe2 {[%clk
0:02:49.5]} 11... Bg4 {[%clk 0:03:00.9]} 12. Qd2 {[%clk 0:02:47.3]} 12... a5
{[%clk 0:02:52.7]} 13. a4 {[%clk 0:02:38.7]} 13... Be6 {[%clk 0:02:47.1]} 14.
Rae1 {[%clk 0:02:30.4]} 14... Nd7 {[%clk 0:02:47.8]} 15. Kh1 {[%clk 0:02:17.3]}
15... Nc5 {[%clk 0:02:46.6]} 16. f4 {[%clk 0:02:18.8]} 16... Bc8 {[%clk
0:02:25.4]} 17. Bc4 {[%clk 0:02:09.4]} 17... Ba6 {[%clk 0:02:18.3]} 18. Bxa6
{[%clk 0:02:10.3]} 18... Qxa6 {[%clk 0:02:19.8]} 19. e5 {[%clk 0:02:04.7]} 19...
dxe5 {[%clk 0:02:21.7]} 20. fxe5 {[%clk 0:01:59.7]} 20... Rad8 {[%clk
0:01:26.8]} 21. Qf2 {[%clk 0:01:54.3]} 21... Ne6 {[%clk 0:01:24.8]} 22. Ne4
{[%clk 0:01:55.4]} 22... Rd5 {[%clk 0:01:22]} 23. Qh4 {[%clk 0:01:28.1]} 23...
Qb7 {[%clk 0:01:10.9]} 24. h3 {[%clk 0:01:17.8]} 24... c5 {[%clk 0:01:06.2]} 25.
Bc3 {[%clk 0:00:58.9]} 25... Qc7 {[%clk 0:01:01.3]} 26. Ng5 {[%clk 0:00:43.3]}
26... Nxg5 {[%clk 0:01:02.4]} 27. Qxg5 {[%clk 0:00:45.2]} 27... e6 {[%clk
0:01:03.7]} 28. Re2 {[%clk 0:00:39.5]} 28... c4 {[%clk 0:01:05.1]} 29. b4 {[%clk
0:00:31.4]} 29... axb4 {[%clk 0:01:06.3]} 30. Bxb4 {[%clk 0:00:33.3]} 30... Rb8
{[%clk 0:01:07.6]} 31. c3 {[%clk 0:00:28.8]} 31... Bxe5 {[%clk 0:01:03.9]} 32.
Ref2 {[%clk 0:00:23.8]} 32... Bd4 {[%clk 0:00:58.8]} 33. Qh6 {[%clk 0:00:15.5]}
33... Bxf2 {[%clk 0:00:58]} 34. Rxf2 {[%clk 0:00:16.9]} 34... Rd1+ {[%clk
0:00:59]} 35. Rf1 {[%clk 0:00:18.2]} 35... Rxf1# {[%clk 0:01:00.1]} 0-1